[Event "Titled Tuesday Blitz November 29 Late 2022"]
[White "Salman, Pavel"]
[Black "Vasques, Antonio Pedro Freixial"]
[WhiteFideId "24153753"]
[BlackFideId "1908332"]
[WhiteElo "2187"]
[BlackElo "2243"]
[Result "0-1"]
[Round "11"]
[TimeControl "180+1"]
[Date "2022.11.30"]
[WhiteClock "0:00:19"]
[BlackClock "0:00:16"]

1. Nf3 {[%clk 0:01:46]}  Nf6 {[%clk 0:02:59]} 2. g3 {[%clk 0:01:47]}  g6 {[%clk 0:02:57]} 3. Bg2 {[%clk 0:01:48]}  Bg7 {[%clk 0:02:58]} 4. O-O {[%clk 0:01:48]}  O-O {[%clk 0:02:59]} 5. d3 {[%clk 0:01:49]}  d5 {[%clk 0:02:58]} 6. Nbd2 {[%clk 0:01:50]}  c5 {[%clk 0:02:54]} 7. e4 {[%clk 0:01:50]}  Nc6 {[%clk 0:02:54]} 8. Re1 {[%clk 0:01:51]}  d4 {[%clk 0:02:52]} 9. a4 {[%clk 0:01:50]}  e5 {[%clk 0:02:51]} 10. Nc4 {[%clk 0:01:50]}  Qc7 {[%clk 0:02:51]} 11. Bg5 {[%clk 0:01:50]}  Be6 {[%clk 0:02:35]} 12. Qd2 {[%clk 0:01:49]}  b6 {[%clk 0:02:26]} 13. b3 {[%clk 0:01:49]}  a6 {[%clk 0:02:25]} 14. Rf1 {[%clk 0:01:48]}  b5 {[%clk 0:02:19]} 15. Nb2 {[%clk 0:01:48]}  Nd7 {[%clk 0:02:00]} 16. Bh6 {[%clk 0:01:47]}  Nb6 {[%clk 0:01:46]} 17. Bxg7 {[%clk 0:01:47]}  Kxg7 {[%clk 0:01:45]} 18. Ng5 {[%clk 0:01:48]}  Bd7 {[%clk 0:01:27]} 19. a5 {[%clk 0:01:48]}  Nc8 {[%clk 0:01:26]} 20. f4 {[%clk 0:01:49]}  f6 {[%clk 0:01:26]} 21. Nf3 {[%clk 0:01:48]}  Nd6 {[%clk 0:01:26]} 22. Rf2 {[%clk 0:01:44]}  Be6 {[%clk 0:01:26]} 23. Raf1 {[%clk 0:01:43]}  h6 {[%clk 0:01:23]} 24. Nh4 {[%clk 0:01:40]}  Bg8 {[%clk 0:01:14]} 25. Nd1 {[%clk 0:01:30]}  Qe7 {[%clk 0:01:10]} 26. Bh3 {[%clk 0:01:28]}  c4 {[%clk 0:01:09]} 27. bxc4 {[%clk 0:01:18]}  bxc4 {[%clk 0:01:09]} 28. Qe2 {[%clk 0:01:19]}  cxd3 {[%clk 0:01:09]} 29. cxd3 {[%clk 0:01:20]}  g5 {[%clk 0:00:40]} 30. Nf5+ {[%clk 0:01:14]}  Nxf5 {[%clk 0:00:39]} 31. Bxf5 {[%clk 0:01:15]}  Nxa5 {[%clk 0:00:36]} 32. fxg5 {[%clk 0:01:13]}  fxg5 {[%clk 0:00:37]} 33. Qh5 {[%clk 0:01:12]}  Bf7 {[%clk 0:00:37]} 34. Qh3 {[%clk 0:01:11]}  Nc6 {[%clk 0:00:31]} 35. Bd7 {[%clk 0:01:08]}  Na5 {[%clk 0:00:23]} 36. Nb2 {[%clk 0:00:54]}  Bg6 {[%clk 0:00:19]} 37. Bf5 {[%clk 0:00:51]}  Bf7 {[%clk 0:00:18]} 38. Na4 {[%clk 0:00:50]}  Qa3 {[%clk 0:00:16]} 39. Be6 {[%clk 0:00:46]}  Bg6 {[%clk 0:00:12]} 40. Nb6 {[%clk 0:00:42]}  Rxf2 {[%clk 0:00:11]} 41. Rxf2 {[%clk 0:00:42]}  Rf8 {[%clk 0:00:11]} 42. Rxf8 {[%clk 0:00:40]}  Qxf8 {[%clk 0:00:11]} 43. Nd5 {[%clk 0:00:38]}  Qf3 {[%clk 0:00:11]} 44. Qf1 {[%clk 0:00:32]}  Qxf1+ {[%clk 0:00:10]} 45. Kxf1 {[%clk 0:00:33]}  Nc6 {[%clk 0:00:10]} 46. Bd7 {[%clk 0:00:32]}  Nb8 {[%clk 0:00:10]} 47. Ba4 {[%clk 0:00:32]}  Bf7 {[%clk 0:00:10]} 48. Nc7 {[%clk 0:00:31]}  Kf6 {[%clk 0:00:09]} 49. Ke2 {[%clk 0:00:30]}  Ke7 {[%clk 0:00:09]} 50. Na8 {[%clk 0:00:24]}  Kd6 {[%clk 0:00:10]} 51. Nb6 {[%clk 0:00:24]}  Kc7 {[%clk 0:00:08]} 52. Nd5+ {[%clk 0:00:20]}  Bxd5 {[%clk 0:00:09]} 53. exd5 {[%clk 0:00:21]}  Kd6 {[%clk 0:00:09]} 54. Bb3 {[%clk 0:00:21]}  Nd7 {[%clk 0:00:09]} 55. Kf3 {[%clk 0:00:21]}  Nf6 {[%clk 0:00:10]} 56. h4 {[%clk 0:00:21]}  g4+ {[%clk 0:00:10]} 57. Ke2 {[%clk 0:00:21]}  Nxd5 {[%clk 0:00:11]} 58. Kd2 {[%clk 0:00:21]}  a5 {[%clk 0:00:11]} 59. Bd1 {[%clk 0:00:21]}  h5 {[%clk 0:00:11]} 60. Ba4 {[%clk 0:00:19]}  Ne3 {[%clk 0:00:11]} 61. Be8 {[%clk 0:00:19]}  Nf1+ {[%clk 0:00:11]} 62. Ke2 {[%clk 0:00:18]}  Nxg3+ {[%clk 0:00:12]} 63. Kf2 {[%clk 0:00:19]}  Nf5 {[%clk 0:00:12]} 64. Bxh5 {[%clk 0:00:19]}  Nxh4 {[%clk 0:00:12]} 65. Bxg4 {[%clk 0:00:19]}  Kc5 {[%clk 0:00:12]} 66. Bd1 {[%clk 0:00:19]}  Kb4 {[%clk 0:00:12]} 67. Kg3 {[%clk 0:00:20]}  Ng6 {[%clk 0:00:12]} 68. Kg4 {[%clk 0:00:20]}  a4 {[%clk 0:00:12]} 69. Bxa4 {[%clk 0:00:20]}  Kxa4 {[%clk 0:00:12]} 70. Kf5 {[%clk 0:00:21]}  Kb3 {[%clk 0:00:13]} 71. Kxg6 {[%clk 0:00:19]}  Kc3 {[%clk 0:00:14]} 72. Kf5 {[%clk 0:00:19]}  Kxd3 {[%clk 0:00:14]} 73. Kxe5 {[%clk 0:00:20]}  Ke3 {[%clk 0:00:15]} 74. Kf5 {[%clk 0:00:19]}  d3 {[%clk 0:00:16]} 0-1


[Site "https://www.chess.com"]

[Event "Titled Tuesday Blitz November 29 Late 2022"]
[White "Santos Flores, Alberto"]
[Black "Petrovic, Aleksa"]
[WhiteFideId "3601234"]
[BlackFideId "967629"]
[WhiteElo "2235"]
[BlackElo "2224"]
[Result "1-0"]
[Round "11"]
[TimeControl "180+1"]
[Date "2022.11.30"]
[WhiteClock "0:00:24"]
[BlackClock "0:00:40"]

1. d4 {[%clk 0:02:55]}  Nf6 {[%clk 0:02:59]} 2. Nf3 {[%clk 0:02:52]}  e6 {[%clk 0:03:00]} 3. c4 {[%clk 0:02:51]}  b6 {[%clk 0:03:00]} 4. g3 {[%clk 0:02:50]}  Ba6 {[%clk 0:03:00]} 5. b3 {[%clk 0:02:50]}  d5 {[%clk 0:02:59]} 6. cxd5 {[%clk 0:02:47]}  exd5 {[%clk 0:02:58]} 7. Bg2 {[%clk 0:02:45]}  Bd6 {[%clk 0:02:59]} 8. O-O {[%clk 0:02:44]}  O-O {[%clk 0:02:59]} 9. Nc3 {[%clk 0:02:41]}  Nbd7 {[%clk 0:02:54]} 10. Bg5 {[%clk 0:02:36]}  Re8 {[%clk 0:02:45]} 11. Re1 {[%clk 0:02:29]}  h6 {[%clk 0:02:44]} 12. Bf4 {[%clk 0:02:22]}  Bb4 {[%clk 0:02:41]} 13. Bd2 {[%clk 0:02:02]}  Qe7 {[%clk 0:02:31]} 14. Qc1 {[%clk 0:01:47]}  c5 {[%clk 0:02:18]} 15. a3 {[%clk 0:01:46]}  Ba5 {[%clk 0:02:17]} 16. dxc5 {[%clk 0:01:33]}  bxc5 {[%clk 0:02:15]} 17. b4 {[%clk 0:01:30]}  Bb6 {[%clk 0:02:08]} 18. Na4 {[%clk 0:01:24]}  Rac8 {[%clk 0:02:00]} 19. Nxb6 {[%clk 0:01:22]}  axb6 {[%clk 0:02:01]} 20. Qb2 {[%clk 0:01:19]}  d4 {[%clk 0:01:58]} 21. e3 {[%clk 0:01:12]}  d3 {[%clk 0:01:51]} 22. Bc3 {[%clk 0:01:12]}  Bb7 {[%clk 0:01:32]} 23. bxc5 {[%clk 0:01:08]}  Nxc5 {[%clk 0:01:28]} 24. Qxb6 {[%clk 0:01:04]}  Na4 {[%clk 0:01:18]} 25. Bxf6 {[%clk 0:01:01]}  Nxb6 {[%clk 0:01:18]} 26. Bxe7 {[%clk 0:01:00]}  Bxf3 {[%clk 0:01:09]} 27. Bxf3 {[%clk 0:00:54]}  Rxe7 {[%clk 0:01:08]} 28. Red1 {[%clk 0:00:53]}  Rc3 {[%clk 0:01:04]} 29. a4 {[%clk 0:00:49]}  Ra7 {[%clk 0:00:59]} 30. a5 {[%clk 0:00:41]}  Nc4 {[%clk 0:00:58]} 31. a6 {[%clk 0:00:41]}  Nb2 {[%clk 0:00:54]} 32. Rdb1 {[%clk 0:00:39]}  Nc4 {[%clk 0:00:51]} 33. Rb7 {[%clk 0:00:35]}  Ra8 {[%clk 0:00:45]} 34. a7 {[%clk 0:00:34]}  Kh7 {[%clk 0:00:40]} 35. Rb8 {[%clk 0:00:24]} 1-0


[Site "https://www.chess.com"]

[Event "Titled Tuesday Blitz November 29 Late 2022"]
[White "Shapiro, Daniel"]
[Black "Wieczorek, Zbigniew"]
[WhiteFideId "2001780"]
[BlackFideId "1102001"]
[WhiteElo "2318"]
[BlackElo "2300"]
[Result "0-1"]
[Round "11"]
[TimeControl "180+1"]
[Date "2022.11.30"]
[WhiteClock "0:00:16"]
[BlackClock "0:00:08"]

1. d4 {[%clk 0:03:00]}  Nf6 {[%clk 0:02:58]} 2. c4 {[%clk 0:03:00]}  d6 {[%clk 0:02:56]} 3. Nc3 {[%clk 0:02:59]}  g6 {[%clk 0:02:56]} 4. e4 {[%clk 0:02:59]}  Bg7 {[%clk 0:02:57]} 5. Be2 {[%clk 0:02:59]}  O-O {[%clk 0:02:57]} 6. Nf3 {[%clk 0:02:59]}  e5 {[%clk 0:02:57]} 7. O-O {[%clk 0:02:58]}  Nc6 {[%clk 0:02:57]} 8. d5 {[%clk 0:02:58]}  Nd4 {[%clk 0:02:58]} 9. Nxd4 {[%clk 0:02:46]}  exd4 {[%clk 0:02:59]} 10. Qxd4 {[%clk 0:02:46]}  Nd7 {[%clk 0:02:59]} 11. Qd2 {[%clk 0:02:39]}  Nc5 {[%clk 0:02:59]} 12. Rb1 {[%clk 0:02:16]}  f5 {[%clk 0:02:58]} 13. b4 {[%clk 0:02:10]}  Nxe4 {[%clk 0:02:43]} 14. Nxe4 {[%clk 0:02:09]}  fxe4 {[%clk 0:02:44]} 15. Bb2 {[%clk 0:02:07]}  Bxb2 {[%clk 0:02:25]} 16. Rxb2 {[%clk 0:01:59]}  Qf6 {[%clk 0:02:23]} 17. Rb3 {[%clk 0:01:54]}  Bf5 {[%clk 0:02:13]} 18. Re3 {[%clk 0:01:51]}  Rae8 {[%clk 0:02:12]} 19. Bd1 {[%clk 0:01:51]}  h5 {[%clk 0:02:04]} 20. h3 {[%clk 0:01:40]}  Re7 {[%clk 0:01:39]} 21. Qe2 {[%clk 0:01:33]}  Qg5 {[%clk 0:01:25]} 22. Bc2 {[%clk 0:01:28]}  Rfe8 {[%clk 0:01:17]} 23. Re1 {[%clk 0:01:22]}  h4 {[%clk 0:01:01]} 24. g4 {[%clk 0:00:53]}  hxg3 {[%clk 0:00:57]} 25. Rxg3 {[%clk 0:00:53]}  Qh4 {[%clk 0:00:44]} 26. Kh2 {[%clk 0:00:46]}  Kf8 {[%clk 0:00:38]} 27. Qe3 {[%clk 0:00:44]}  Rh7 {[%clk 0:00:35]} 28. Rb1 {[%clk 0:00:42]}  Kf7 {[%clk 0:00:25]} 29. Rb3 {[%clk 0:00:36]}  Reh8 {[%clk 0:00:21]} 30. Kg2 {[%clk 0:00:28]}  Qe7 {[%clk 0:00:17]} 31. Qf4 {[%clk 0:00:23]}  Qe5 {[%clk 0:00:12]} 32. Qxe5 {[%clk 0:00:22]}  dxe5 {[%clk 0:00:12]} 33. Rbe3 {[%clk 0:00:21]}  Rh4 {[%clk 0:00:11]} 34. Bb1 {[%clk 0:00:16]}  Kf6 {[%clk 0:00:10]} 35. a3 {[%clk 0:00:16]}  Rd8 {[%clk 0:00:10]} 36. Ba2 {[%clk 0:00:15]}  c6 {[%clk 0:00:09]} 37. Re2 {[%clk 0:00:13]}  cxd5 {[%clk 0:00:09]} 38. cxd5 {[%clk 0:00:13]}  Ke7 {[%clk 0:00:08]} 39. Rge3 {[%clk 0:00:13]}  Kd6 {[%clk 0:00:08]} 40. Bb1 {[%clk 0:00:14]}  Rdh8 {[%clk 0:00:06]} 41. Bxe4 {[%clk 0:00:13]}  Bxh3+ {[%clk 0:00:04]} 42. Kg1 {[%clk 0:00:13]}  Rg4+ {[%clk 0:00:03]} 43. Rg3 {[%clk 0:00:13]}  Rxg3+ {[%clk 0:00:02]} 44. fxg3 {[%clk 0:00:14]}  Bf5 {[%clk 0:00:03]} 45. Bg2 {[%clk 0:00:13]}  Rc8 {[%clk 0:00:02]} 46. Rd2 {[%clk 0:00:12]}  Rc3 {[%clk 0:00:02]} 47. Kf2 {[%clk 0:00:11]}  Rxa3 {[%clk 0:00:02]} 48. Bf3 {[%clk 0:00:11]}  Rb3 {[%clk 0:00:02]} 49. g4 {[%clk 0:00:11]}  Bd7 {[%clk 0:00:02]} 50. Be4 {[%clk 0:00:11]}  Rxb4 {[%clk 0:00:01]} 51. Bxg6 {[%clk 0:00:11]}  Rf4+ {[%clk 0:00:02]} 52. Ke2 {[%clk 0:00:10]}  Rxg4 {[%clk 0:00:02]} 53. Bc2 {[%clk 0:00:10]}  Rg2+ {[%clk 0:00:02]} 54. Ke3 {[%clk 0:00:10]}  Rxd2 {[%clk 0:00:03]} 55. Kxd2 {[%clk 0:00:11]}  Kxd5 {[%clk 0:00:03]} 56. Ke3 {[%clk 0:00:10]}  Kd6 {[%clk 0:00:03]} 57. Bb3 {[%clk 0:00:10]}  Bc6 {[%clk 0:00:04]} 58. Bc4 {[%clk 0:00:10]}  b5 {[%clk 0:00:04]} 59. Bf7 {[%clk 0:00:11]}  a5 {[%clk 0:00:05]} 60. Bg8 {[%clk 0:00:11]}  a4 {[%clk 0:00:05]} 61. Ba2 {[%clk 0:00:12]}  b4 {[%clk 0:00:06]} 62. Bb1 {[%clk 0:00:13]}  b3 {[%clk 0:00:07]} 63. Kd2 {[%clk 0:00:13]}  a3 {[%clk 0:00:07]} 64. Kc3 {[%clk 0:00:14]}  a2 {[%clk 0:00:07]} 65. Bxa2 {[%clk 0:00:15]}  bxa2 {[%clk 0:00:08]} 66. Kb2 {[%clk 0:00:16]}  Bd5 {[%clk 0:00:08]} 0-1


[Site "https://www.chess.com"]

[Event "Titled Tuesday Blitz November 29 Late 2022"]
[White "Toniutti, Ezio"]
[Black "Jimenez, Joaquin"]
[WhiteFideId "113034"]
[BlackFideId "109860"]
[WhiteElo "2215"]
[BlackElo "2163"]
[Result "1-0"]
[Round "11"]
[TimeControl "180+1"]
[Date "2022.11.30"]
[WhiteClock "0:00:22"]
[BlackClock "0:00:15"]

1. d4 {[%clk 0:02:57]}  Nf6 {[%clk 0:02:59]} 2. c4 {[%clk 0:02:56]}  g6 {[%clk 0:02:59]} 3. Nc3 {[%clk 0:02:56]}  Bg7 {[%clk 0:02:59]} 4. e4 {[%clk 0:02:55]}  d6 {[%clk 0:03:00]} 5. f4 {[%clk 0:02:52]}  O-O {[%clk 0:03:00]} 6. Nf3 {[%clk 0:02:50]}  c5 {[%clk 0:03:01]} 7. d5 {[%clk 0:02:49]}  e6 {[%clk 0:03:01]} 8. Be2 {[%clk 0:02:48]}  exd5 {[%clk 0:02:55]} 9. cxd5 {[%clk 0:02:49]}  Re8 {[%clk 0:02:53]} 10. e5 {[%clk 0:02:48]}  dxe5 {[%clk 0:02:53]} 11. fxe5 {[%clk 0:02:48]}  Ng4 {[%clk 0:02:53]} 12. e6 {[%clk 0:02:46]}  fxe6 {[%clk 0:02:49]} 13. Bg5 {[%clk 0:02:44]}  Bf6 {[%clk 0:02:39]} 14. Bxf6 {[%clk 0:02:29]}  Qxf6 {[%clk 0:02:37]} 15. Qd2 {[%clk 0:02:25]}  e5 {[%clk 0:02:21]} 16. Ne4 {[%clk 0:02:18]}  Qd8 {[%clk 0:02:16]} 17. O-O {[%clk 0:02:12]}  Bf5 {[%clk 0:02:15]} 18. Nfg5 {[%clk 0:02:04]}  Nf6 {[%clk 0:01:49]} 19. Nxf6+ {[%clk 0:01:47]}  Qxf6 {[%clk 0:01:49]} 20. g4 {[%clk 0:01:47]}  h6 {[%clk 0:01:32]} 21. Ne6 {[%clk 0:01:27]}  Na6 {[%clk 0:01:26]} 22. Qxh6 {[%clk 0:01:17]}  Qh8 {[%clk 0:00:48]} 23. Qxh8+ {[%clk 0:01:13]}  Kxh8 {[%clk 0:00:49]} 24. gxf5 {[%clk 0:01:14]}  gxf5 {[%clk 0:00:48]} 25. Rxf5 {[%clk 0:01:13]}  Nb4 {[%clk 0:00:46]} 26. Bf3 {[%clk 0:00:53]}  Nd3 {[%clk 0:00:38]} 27. Kh1 {[%clk 0:00:35]}  Nf2+ {[%clk 0:00:27]} 28. Kg2 {[%clk 0:00:34]}  Nd3 {[%clk 0:00:27]} 29. Rh5+ {[%clk 0:00:29]}  Kg8 {[%clk 0:00:27]} 30. Be4 {[%clk 0:00:29]}  Nf4+ {[%clk 0:00:18]} 31. Nxf4 {[%clk 0:00:29]}  exf4 {[%clk 0:00:19]} 32. Kf3 {[%clk 0:00:29]}  Kg7 {[%clk 0:00:16]} 33. Rg1+ {[%clk 0:00:30]}  Kf6 {[%clk 0:00:16]} 34. Rg6+ {[%clk 0:00:29]}  Kf7 {[%clk 0:00:15]} 35. Rh7+ {[%clk 0:00:29]}  Kf8 {[%clk 0:00:15]} 36. d6 {[%clk 0:00:24]}  Re5 {[%clk 0:00:15]} 37. Rh8+ {[%clk 0:00:22]} 1-0


[Site "https://www.chess.com"]

[Event "Titled Tuesday Blitz November 29 Late 2022"]
[White "Urazayev, Arystanbek"]
[Black "Vlassov, Nikolai"]
[WhiteFideId "13709810"]
[BlackFideId "4103360"]
[WhiteElo "2441"]
[BlackElo "2324"]
[Result "0-1"]
[Round "11"]
[TimeControl "180+1"]
[Date "2022.11.30"]
[WhiteClock "0:01:00"]
[BlackClock "0:00:24"]

1. c4 {[%clk 0:02:55]}  e5 {[%clk 0:02:53]} 2. Nc3 {[%clk 0:02:55]}  Nf6 {[%clk 0:02:53]} 3. Nf3 {[%clk 0:02:55]}  Nc6 {[%clk 0:02:51]} 4. e3 {[%clk 0:02:55]}  Bb4 {[%clk 0:02:50]} 5. Qc2 {[%clk 0:02:56]}  O-O {[%clk 0:02:49]} 6. Nd5 {[%clk 0:02:56]}  Bd6 {[%clk 0:02:46]} 7. Bd3 {[%clk 0:02:54]}  g6 {[%clk 0:02:43]} 8. a3 {[%clk 0:02:48]}  Nxd5 {[%clk 0:02:42]} 9. cxd5 {[%clk 0:02:49]}  Ne7 {[%clk 0:02:42]} 10. Bc4 {[%clk 0:02:46]}  c6 {[%clk 0:02:31]} 11. dxc6 {[%clk 0:02:36]}  dxc6 {[%clk 0:02:31]} 12. h4 {[%clk 0:02:36]}  Bf5 {[%clk 0:02:30]} 13. e4 {[%clk 0:02:36]}  Bg4 {[%clk 0:02:29]} 14. h5 {[%clk 0:02:33]}  Bxf3 {[%clk 0:02:24]} 15. gxf3 {[%clk 0:02:31]}  Kg7 {[%clk 0:02:21]} 16. d3 {[%clk 0:02:31]}  Rh8 {[%clk 0:01:58]} 17. Bg5 {[%clk 0:02:31]}  h6 {[%clk 0:01:49]} 18. Bxe7 {[%clk 0:02:30]}  Qxe7 {[%clk 0:01:49]} 19. hxg6 {[%clk 0:02:31]}  fxg6 {[%clk 0:01:49]} 20. O-O-O {[%clk 0:02:32]}  Raf8 {[%clk 0:01:45]} 21. Rh3 {[%clk 0:02:32]}  Rf4 {[%clk 0:01:34]} 22. Rg1 {[%clk 0:02:31]}  Rhf8 {[%clk 0:01:34]} 23. Qe2 {[%clk 0:02:31]}  b5 {[%clk 0:01:21]} 24. Bb3 {[%clk 0:02:29]}  Bxa3 {[%clk 0:01:20]} 25. bxa3 {[%clk 0:02:30]}  Qxa3+ {[%clk 0:01:20]} 26. Qb2 {[%clk 0:02:30]}  Qxb2+ {[%clk 0:01:20]} 27. Kxb2 {[%clk 0:02:31]}  Rxf3 {[%clk 0:01:20]} 28. Rxf3 {[%clk 0:02:25]}  Rxf3 {[%clk 0:01:20]} 29. Ra1 {[%clk 0:02:25]}  h5 {[%clk 0:01:12]} 30. Rxa7+ {[%clk 0:02:22]}  Kh6 {[%clk 0:01:12]} 31. Kc3 {[%clk 0:02:22]}  c5 {[%clk 0:01:07]} 32. Bg8 {[%clk 0:02:21]}  c4 {[%clk 0:01:06]} 33. Re7 {[%clk 0:02:12]}  Rxd3+ {[%clk 0:01:05]} 34. Kb4 {[%clk 0:02:12]}  Rb3+ {[%clk 0:01:05]} 35. Kc5 {[%clk 0:02:12]}  Rb2 {[%clk 0:01:04]} 36. Kd5 {[%clk 0:02:09]}  c3 {[%clk 0:01:04]} 37. Kxe5 {[%clk 0:02:09]}  Rxf2 {[%clk 0:01:00]} 38. Rb7 {[%clk 0:01:57]}  c2 {[%clk 0:00:57]} 39. Rc7 {[%clk 0:01:57]}  h4 {[%clk 0:00:57]} 40. Be6 {[%clk 0:01:22]}  b4 {[%clk 0:00:56]} 41. Kd4 {[%clk 0:01:22]}  h3 {[%clk 0:00:47]} 42. Ke3 {[%clk 0:01:12]}  h2 {[%clk 0:00:43]} 43. Bg8 {[%clk 0:01:11]}  Kg5 {[%clk 0:00:38]} 44. Rc5+ {[%clk 0:01:10]}  Kh4 {[%clk 0:00:36]} 45. Rc7 {[%clk 0:01:09]}  Kg3 {[%clk 0:00:33]} 46. Rc6 {[%clk 0:01:06]}  g5 {[%clk 0:00:25]} 47. Rc5 {[%clk 0:01:00]}  g4 {[%clk 0:00:24]} 0-1


[Site "https://www.chess.com"]

[Event "Titled Tuesday Blitz November 29 Late 2022"]
[White "Vargas, Mauricio"]
[Black "Torres Dominguez, David"]
[WhiteFideId "4404572"]
[BlackFideId "2220857"]
[WhiteElo "2025"]
[BlackElo "2037"]
[Result "0-1"]
[Round "11"]
[TimeControl "180+1"]
[Date "2022.11.30"]
[WhiteClock "0:00:01"]
[BlackClock "0:01:18"]

1. e4 {[%clk 0:00:06]}  Nc6 {[%clk 0:02:57]} 2. f4 {[%clk 0:00:07]}  d5 {[%clk 0:02:55]} 3. Nc3 {[%clk 0:00:07]}  d4 {[%clk 0:02:52]} 4. Nce2 {[%clk 0:00:07]}  e5 {[%clk 0:02:51]} 5. Nf3 {[%clk 0:00:07]}  Bg4 {[%clk 0:02:49]} 6. Neg1 {[%clk 0:00:05]}  exf4 {[%clk 0:02:46]} 7. h3 {[%clk 0:00:04]}  Bh5 {[%clk 0:02:45]} 8. d3 {[%clk 0:00:04]}  g5 {[%clk 0:02:45]} 9. h4 {[%clk 0:00:02]}  g4 {[%clk 0:02:37]} 10. Ng5 {[%clk 0:00:02]}  h6 {[%clk 0:02:28]} 11. Bxf4 {[%clk 0:00:02]}  hxg5 {[%clk 0:02:27]} 12. Bxg5 {[%clk 0:00:01]}  Be7 {[%clk 0:02:25]} 13. Bf4 {[%clk 0:00:02]}  Bd6 {[%clk 0:02:16]} 14. g3 {[%clk 0:00:03]}  Bxf4 {[%clk 0:02:15]} 15. gxf4 {[%clk 0:00:03]}  Qf6 {[%clk 0:02:09]} 16. Qd2 {[%clk 0:00:04]}  Nge7 {[%clk 0:02:04]} 17. e5 {[%clk 0:00:05]}  Qe6 {[%clk 0:01:30]} 18. Bg2 {[%clk 0:00:05]}  O-O-O {[%clk 0:01:29]} 19. O-O-O {[%clk 0:00:04]}  Qxa2 {[%clk 0:01:27]} 20. c4 {[%clk 0:00:01]}  dxc3 {[%clk 0:01:18]} 0-1


[Site "https://www.chess.com"]